[Event "Late-Titled-Tuesday-Blitz-October-24-2023"]
[Site "Chess.com"]
[Date "2023.10.24"]
[Round "4"]
[White "santosalberto1987"]
[Black "Emeraldddd"]
[Result "1/2-1/2"]
[WhiteElo "2435"]
[BlackElo "2606"]
[TimeControl "180+1"]
[EndTime "14:41:20 PDT"]
[Termination "Game drawn by stalemate"]

1. e4 {[%clk 0:02:38.9]} 1... c5 {[%clk 0:02:58.5]} 2. Nf3 {[%clk 0:02:38.7]}
2... e6 {[%clk 0:02:58.9]} 3. g3 {[%clk 0:02:38.7]} 3... a6 {[%clk 0:02:59.1]}
4. Bg2 {[%clk 0:02:38.4]} 4... b5 {[%clk 0:02:59.9]} 5. O-O {[%clk 0:02:38.7]}
5... Bb7 {[%clk 0:03:00.6]} 6. Qe2 {[%clk 0:02:38.3]} 6... Nf6 {[%clk
0:03:00.5]} 7. e5 {[%clk 0:02:31.1]} 7... Nd5 {[%clk 0:03:00.5]} 8. c3 {[%clk
0:02:31.7]} 8... d6 {[%clk 0:03:00]} 9. d4 {[%clk 0:02:31.6]} 9... Nd7 {[%clk
0:02:59.2]} 10. Nbd2 {[%clk 0:02:28.3]} 10... Qc7 {[%clk 0:02:59]} 11. Re1
{[%clk 0:02:25.8]} 11... dxe5 {[%clk 0:02:48.3]} 12. Nxe5 {[%clk 0:02:21.7]}
12... N7f6 {[%clk 0:02:31.8]} 13. Ndf3 {[%clk 0:02:14]} 13... Bd6 {[%clk
0:02:26.1]} 14. a4 {[%clk 0:01:32.5]} 14... c4 {[%clk 0:02:14.4]} 15. axb5
{[%clk 0:01:31.5]} 15... axb5 {[%clk 0:02:15.3]} 16. Rxa8+ {[%clk 0:01:29.7]}
16... Bxa8 {[%clk 0:02:16.2]} 17. Ng5 {[%clk 0:01:11.9]} 17... O-O {[%clk
0:02:08.5]} 18. Nexf7 {[%clk 0:01:12]} 18... Rxf7 {[%clk 0:01:15.5]} 19. Qxe6
{[%clk 0:01:11.6]} 19... Bf8 {[%clk 0:01:04.4]} 20. Re5 {[%clk 0:00:39.6]} 20...
h6 {[%clk 0:00:53.8]} 21. Nxf7 {[%clk 0:00:37.7]} 21... Qxf7 {[%clk 0:00:54.3]}
22. Qa6 {[%clk 0:00:27.6]} 22... Nc7 {[%clk 0:00:46.6]} 23. Qa7 {[%clk
0:00:25.1]} 23... Bxg2 {[%clk 0:00:46.5]} 24. Kxg2 {[%clk 0:00:24.4]} 24... Bd6
{[%clk 0:00:43.2]} 25. Re2 {[%clk 0:00:23.7]} 25... Qd5+ {[%clk 0:00:38.2]} 26.
Kg1 {[%clk 0:00:22.9]} 26... Ne6 {[%clk 0:00:35.8]} 27. Qa6 {[%clk 0:00:19.7]}
27... Ng5 {[%clk 0:00:31]} 28. Bxg5 {[%clk 0:00:19.6]} 28... hxg5 {[%clk
0:00:31.9]} 29. Qc8+ {[%clk 0:00:18.3]} 29... Kh7 {[%clk 0:00:30]} 30. Qe6
{[%clk 0:00:18.4]} 30... b4 {[%clk 0:00:22.2]} 31. Qxd5 {[%clk 0:00:17.6]} 31...
Nxd5 {[%clk 0:00:23.1]} 32. cxb4 {[%clk 0:00:17.6]} 32... Bxb4 {[%clk 0:00:22]}
33. Rc2 {[%clk 0:00:17]} 33... c3 {[%clk 0:00:21.7]} 34. bxc3 {[%clk 0:00:17.7]}
34... Bxc3 {[%clk 0:00:22.6]} 35. Rc1 {[%clk 0:00:17]} 35... Kg6 {[%clk
0:00:22.8]} 36. Rd1 {[%clk 0:00:16.9]} 36... Kf5 {[%clk 0:00:22.5]} 37. f3
{[%clk 0:00:17.4]} 37... g4 {[%clk 0:00:22.3]} 38. fxg4+ {[%clk 0:00:17.7]}
38... Ke4 {[%clk 0:00:20.6]} 39. Kg2 {[%clk 0:00:16.1]} 39... Ne3+ {[%clk
0:00:20.3]} 40. Kf2 {[%clk 0:00:15.6]} 40... Nxd1+ {[%clk 0:00:20.7]} 41. Ke2
{[%clk 0:00:16.5]} 41... Nb2 {[%clk 0:00:21.1]} 42. d5 {[%clk 0:00:16.5]} 42...
Kxd5 {[%clk 0:00:21.6]} 43. Kf3 {[%clk 0:00:16.5]} 43... Bd2 {[%clk 0:00:20.9]}
44. h4 {[%clk 0:00:16.1]} 44... Nc4 {[%clk 0:00:20.6]} 45. g5 {[%clk 0:00:16.5]}
45... Ke5 {[%clk 0:00:19.4]} 46. Kg4 {[%clk 0:00:16.8]} 46... Nd6 {[%clk
0:00:18.6]} 47. Kh5 {[%clk 0:00:17]} 47... Ke6 {[%clk 0:00:17]} 48. Kg6 {[%clk
0:00:17.1]} 48... Ne8 {[%clk 0:00:14.9]} 49. h5 {[%clk 0:00:17.2]} 49... Bc3
{[%clk 0:00:05.7]} 50. h6 {[%clk 0:00:17.1]} 50... gxh6 {[%clk 0:00:06.6]} 51.
gxh6 {[%clk 0:00:17.7]} 51... Bh8 {[%clk 0:00:06.1]} 52. Kh7 {[%clk 0:00:16.3]}
52... Be5 {[%clk 0:00:06.1]} 53. g4 {[%clk 0:00:14.2]} 53... Kf6 {[%clk
0:00:06.2]} 54. Kg8 {[%clk 0:00:13.6]} 54... Kg6 {[%clk 0:00:06.2]} 55. h7
{[%clk 0:00:13.8]} 55... Nf6+ {[%clk 0:00:06.9]} 56. Kf8 {[%clk 0:00:14.1]}
56... Nxh7+ {[%clk 0:00:07.8]} 57. Ke7 {[%clk 0:00:14.1]} 57... Ng5 {[%clk
0:00:08.7]} 58. Kd7 {[%clk 0:00:14.1]} 58... Bg3 {[%clk 0:00:09.6]} 59. Kc6
{[%clk 0:00:13.9]} 59... Nf3 {[%clk 0:00:10.5]} 60. Kd5 {[%clk 0:00:14.7]} 60...
Kg5 {[%clk 0:00:11.4]} 61. Ke4 {[%clk 0:00:15.1]} 61... Kxg4 {[%clk 0:00:12.3]}
62. Ke3 {[%clk 0:00:15.7]} 62... Ng5 {[%clk 0:00:13.2]} 63. Kd4 {[%clk
0:00:15.8]} 63... Bf4 {[%clk 0:00:14.1]} 64. Kd3 {[%clk 0:00:15.9]} 64... Kf5
{[%clk 0:00:15]} 65. Kd4 {[%clk 0:00:16.2]} 65... Nf3+ {[%clk 0:00:15.4]} 66.
Kd3 {[%clk 0:00:16.1]} 66... Ke5 {[%clk 0:00:15.8]} 67. Ke2 {[%clk 0:00:16.2]}
67... Ke4 {[%clk 0:00:16.5]} 68. Kf2 {[%clk 0:00:16.4]} 68... Nd4 {[%clk
0:00:16.7]} 69. Kg2 {[%clk 0:00:16.6]} 69... Nf5 {[%clk 0:00:16.1]} 70. Kf2
{[%clk 0:00:16.9]} 70... Be3+ {[%clk 0:00:16.5]} 71. Ke2 {[%clk 0:00:16.9]}
71... Ng3+ {[%clk 0:00:15.5]} 72. Ke1 {[%clk 0:00:17.2]} 72... Kd3 {[%clk
0:00:15.2]} 73. Kd1 {[%clk 0:00:17.6]} 73... Bf2 {[%clk 0:00:12.9]} 74. Kc1
{[%clk 0:00:17.9]} 74... Bd4 {[%clk 0:00:12.3]} 75. Kd1 {[%clk 0:00:18]} 75...
Ne2 {[%clk 0:00:13]} 76. Ke1 {[%clk 0:00:18.2]} 76... Be3 {[%clk 0:00:13.1]} 77.
Kf1 {[%clk 0:00:18.6]} 77... Nf4 {[%clk 0:00:12.9]} 78. Ke1 {[%clk 0:00:18.8]}
78... Ke4 {[%clk 0:00:09.6]} 79. Kf1 {[%clk 0:00:18.6]} 79... Kf3 {[%clk
0:00:10.1]} 80. Ke1 {[%clk 0:00:18.9]} 80... Bf2+ {[%clk 0:00:10.8]} 81. Kf1
{[%clk 0:00:19]} 81... Bg3 {[%clk 0:00:08.5]} 82. Kg1 {[%clk 0:00:19.4]} 82...
Ng2 {[%clk 0:00:07.2]} 83. Kf1 {[%clk 0:00:18.6]} 83... Bh2 {[%clk 0:00:06.9]}
1/2-1/2

[Event "Late-Titled-Tuesday-Blitz-October-24-2023"]
[Site "Chess.com"]
[Date "2023.10.24"]
[Round "4"]
[White "chess94cu"]
[Black "whiteglovethief"]
[Result "1/2-1/2"]
[WhiteElo "2645"]
[BlackElo "2528"]
[TimeControl "180+1"]
[EndTime "14:41:26 PDT"]
[Termination "Game drawn - insufficient material"]

1. Nf3 {[%clk 0:03:00.9]} 1... d5 {[%clk 0:02:57.7]} 2. c4 {[%clk 0:03:00.8]}
2... e6 {[%clk 0:02:55.5]} 3. d4 {[%clk 0:02:59.6]} 3... h6 {[%clk 0:02:54]} 4.
Nc3 {[%clk 0:02:58.7]} 4... Nf6 {[%clk 0:02:52.9]} 5. g3 {[%clk 0:02:58]} 5...
Bd6 {[%clk 0:02:50.6]} 6. Bg2 {[%clk 0:02:56.5]} 6... Nc6 {[%clk 0:02:48.4]} 7.
O-O {[%clk 0:02:47.8]} 7... O-O {[%clk 0:02:35.9]} 8. Bf4 {[%clk 0:02:35.5]}
8... Bxf4 {[%clk 0:02:32.9]} 9. gxf4 {[%clk 0:02:36]} 9... dxc4 {[%clk 0:02:32]}
10. e3 {[%clk 0:02:36.1]} 10... Nd5 {[%clk 0:02:30.7]} 11. Rc1 {[%clk
0:02:31.9]} 11... a6 {[%clk 0:02:29.1]} 12. Ne4 {[%clk 0:02:25.7]} 12... b5
{[%clk 0:02:26.6]} 13. b3 {[%clk 0:02:25.2]} 13... Na5 {[%clk 0:02:11.9]} 14.
Nfd2 {[%clk 0:02:13.8]} 14... cxb3 {[%clk 0:02:00]} 15. axb3 {[%clk 0:02:14.7]}
15... Bb7 {[%clk 0:01:53.4]} 16. Nc5 {[%clk 0:02:14.5]} 16... b4 {[%clk
0:01:50]} 17. Nde4 {[%clk 0:01:42.3]} 17... Bc6 {[%clk 0:01:40]} 18. Qc2 {[%clk
0:01:33]} 18... Qe7 {[%clk 0:01:24.1]} 19. Rfe1 {[%clk 0:01:23.9]} 19... f5
{[%clk 0:01:18.4]} 20. Ra1 {[%clk 0:01:04.2]} 20... fxe4 {[%clk 0:01:10.9]} 21.
Rxa5 {[%clk 0:01:02.9]} 21... Nc3 {[%clk 0:01:08.3]} 22. Nxe4 {[%clk 0:01:00.8]}
22... Bxe4 {[%clk 0:01:00.7]} 23. Bxe4 {[%clk 0:01:01.7]} 23... Rac8 {[%clk
0:00:40.5]} 24. Rc5 {[%clk 0:01:00.8]} 24... Qd6 {[%clk 0:00:33]} 25. Kh1 {[%clk
0:00:52.6]} 25... Rb8 {[%clk 0:00:30.7]} 26. Rg1 {[%clk 0:00:51.5]} 26... Rb5
{[%clk 0:00:29.6]} 27. Rxb5 {[%clk 0:00:45.5]} 27... axb5 {[%clk 0:00:30.5]} 28.
Bf3 {[%clk 0:00:45.8]} 28... c5 {[%clk 0:00:27.6]} 29. Qg6 {[%clk 0:00:43.2]}
29... Rf7 {[%clk 0:00:28.1]} 30. Bh5 {[%clk 0:00:40.1]} 30... Re7 {[%clk
0:00:26.6]} 31. Ra1 {[%clk 0:00:37.1]} 31... Qc6+ {[%clk 0:00:22.3]} 32. Qg2
{[%clk 0:00:22]} 32... Qxg2+ {[%clk 0:00:21.6]} 33. Kxg2 {[%clk 0:00:22.9]}
33... c4 {[%clk 0:00:15.8]} 34. Bg6 {[%clk 0:00:21.7]} 34... Rf7 {[%clk
0:00:16.4]} 35. Bxf7+ {[%clk 0:00:20.1]} 35... Kxf7 {[%clk 0:00:17.1]} 36. bxc4
{[%clk 0:00:19]} 36... bxc4 {[%clk 0:00:14.2]} 37. Ra7+ {[%clk 0:00:19.9]} 37...
Kf6 {[%clk 0:00:14.2]} 38. Rc7 {[%clk 0:00:20.2]} 38... b3 {[%clk 0:00:14.5]}
39. Rxc4 {[%clk 0:00:14]} 39... b2 {[%clk 0:00:14.4]} 40. Rb4 {[%clk 0:00:14.9]}
40... b1=Q {[%clk 0:00:14.7]} 41. Rxb1 {[%clk 0:00:15.3]} 41... Nxb1 {[%clk
0:00:15.5]} 42. Kf3 {[%clk 0:00:15.6]} 42... Nd2+ {[%clk 0:00:15.9]} 43. Ke2
{[%clk 0:00:15.3]} 43... Ne4 {[%clk 0:00:16.5]} 44. Kf3 {[%clk 0:00:15.3]} 44...
Kf5 {[%clk 0:00:16.3]} 45. h3 {[%clk 0:00:14.9]} 45... g5 {[%clk 0:00:15.8]} 46.
fxg5 {[%clk 0:00:14.7]} 46... hxg5 {[%clk 0:00:15.7]} 47. Ke2 {[%clk 0:00:13.4]}
47... Nd6 {[%clk 0:00:14]} 48. f3 {[%clk 0:00:12]} 48... Nf7 {[%clk 0:00:12.9]}
49. Kf2 {[%clk 0:00:12.2]} 49... Nd6 {[%clk 0:00:12.4]} 50. Kg3 {[%clk
0:00:11.4]} 50... Kg6 {[%clk 0:00:12]} 51. f4 {[%clk 0:00:05.6]} 51... Nf5+
{[%clk 0:00:11.9]} 52. Kf3 {[%clk 0:00:05.5]} 52... gxf4 {[%clk 0:00:10.7]} 53.
Kxf4 {[%clk 0:00:06.4]} 53... Kf6 {[%clk 0:00:09.4]} 54. Ke4 {[%clk 0:00:06.1]}
54... Ng3+ {[%clk 0:00:09.2]} 55. Kf4 {[%clk 0:00:06.2]} 55... Nf5 {[%clk
0:00:09.4]} 56. Ke4 {[%clk 0:00:06.3]} 56... Nd6+ {[%clk 0:00:10.1]} 57. Kf4
{[%clk 0:00:06.5]} 57... Nb5 {[%clk 0:00:10.4]} 58. h4 {[%clk 0:00:06.1]} 58...
Nc3 {[%clk 0:00:11.1]} 59. e4 {[%clk 0:00:04.4]} 59... Ne2+ {[%clk 0:00:10.8]}
60. Ke3 {[%clk 0:00:05]} 60... Ng3 {[%clk 0:00:11.4]} 61. Kf4 {[%clk 0:00:05.3]}
61... Nh5+ {[%clk 0:00:11.7]} 62. Kg4 {[%clk 0:00:05.9]} 62... Kg6 {[%clk
0:00:09.4]} 63. e5 {[%clk 0:00:04.9]} 63... Ng7 {[%clk 0:00:09.3]} 64. Kf4
{[%clk 0:00:05.2]} 64... Kh5 {[%clk 0:00:08.8]} 65. Ke4 {[%clk 0:00:04.4]} 65...
Kxh4 {[%clk 0:00:08]} 66. d5 {[%clk 0:00:05.1]} 66... exd5+ {[%clk 0:00:07.5]}
67. Kxd5 {[%clk 0:00:06]} 67... Kg5 {[%clk 0:00:08.2]} 68. e6 {[%clk 0:00:06.7]}
68... Kf6 {[%clk 0:00:06.8]} 69. e7 {[%clk 0:00:07.5]} 69... Kxe7 {[%clk
0:00:06.2]} 1/2-1/2

[Event "Late-Titled-Tuesday-Blitz-October-24-2023"]
[Site "Chess.com"]
[Date "2023.10.24"]
[Round "4"]
[White "cthake"]
[Black "YellowJacek"]
[Result "0-1"]
[WhiteElo "1925"]
[BlackElo "2299"]
[TimeControl "180+1"]
[EndTime "14:41:32 PDT"]
[Termination "YellowJacek won by checkmate"]

1. c4 {[%clk 0:03:00.9]} 1... e5 {[%clk 0:02:56.2]} 2. Nc3 {[%clk 0:03:00.8]}
2... Nc6 {[%clk 0:02:51.1]} 3. g3 {[%clk 0:03:00.8]} 3... g6 {[%clk 0:02:50.6]}
4. Bg2 {[%clk 0:03:01]} 4... Bg7 {[%clk 0:02:51.1]} 5. d3 {[%clk 0:03:01.4]}
5... Nge7 {[%clk 0:02:49.9]} 6. e4 {[%clk 0:03:01.5]} 6... Nd4 {[%clk
0:02:48.1]} 7. Nge2 {[%clk 0:03:00.7]} 7... Nec6 {[%clk 0:02:48]} 8. O-O {[%clk
0:03:00.3]} 8... d6 {[%clk 0:02:46.4]} 9. Be3 {[%clk 0:03:00.1]} 9... O-O {[%clk
0:02:45.6]} 10. Qd2 {[%clk 0:02:58.2]} 10... Nxe2+ {[%clk 0:02:44.2]} 11. Nxe2
{[%clk 0:02:57.5]} 11... Be6 {[%clk 0:02:41]} 12. b3 {[%clk 0:02:55.1]} 12...
Qd7 {[%clk 0:02:41]} 13. Rad1 {[%clk 0:02:54.4]} 13... f5 {[%clk 0:02:34.1]} 14.
f4 {[%clk 0:02:53.3]} 14... fxe4 {[%clk 0:02:33.4]} 15. dxe4 {[%clk 0:02:53.4]}
15... Bg4 {[%clk 0:02:28.3]} 16. c5 {[%clk 0:02:28.8]} 16... Nd4 {[%clk
0:02:20.7]} 17. Bxd4 {[%clk 0:02:07.2]} 17... exd4 {[%clk 0:02:19.4]} 18. cxd6
{[%clk 0:02:01]} 18... Qxd6 {[%clk 0:02:19.5]} 19. Qd3 {[%clk 0:01:59.7]} 19...
c5 {[%clk 0:02:16.8]} 20. h3 {[%clk 0:01:59.6]} 20... Bxe2 {[%clk 0:02:15.3]}
21. Qxe2 {[%clk 0:01:59.2]} 21... Rad8 {[%clk 0:02:11.5]} 22. e5 {[%clk
0:01:58.9]} 22... Qc7 {[%clk 0:02:09.2]} 23. Qc4+ {[%clk 0:01:58.6]} 23... Kh8
{[%clk 0:02:08.7]} 24. e6 {[%clk 0:01:57.9]} 24... Rfe8 {[%clk 0:02:05.1]} 25.
Rfe1 {[%clk 0:01:58]} 25... Qd6 {[%clk 0:01:57.9]} 26. Bxb7 {[%clk 0:01:55]}
26... g5 {[%clk 0:01:55.9]} 27. Re4 {[%clk 0:01:46]} 27... gxf4 {[%clk 0:01:55]}
28. gxf4 {[%clk 0:01:45]} 28... Re7 {[%clk 0:01:51]} 29. Ba6 {[%clk 0:01:35.8]}
29... Rde8 {[%clk 0:01:38.2]} 30. Bb5 {[%clk 0:01:32.3]} 30... Rxe6 {[%clk
0:01:35.9]} 31. Rxe6 {[%clk 0:01:32.4]} 31... Rxe6 {[%clk 0:01:35.7]} 32. Rf1
{[%clk 0:01:24.4]} 32... Rg6+ {[%clk 0:01:33.5]} 33. Kh2 {[%clk 0:01:24]} 33...
Bh6 {[%clk 0:01:29]} 34. Qf7 {[%clk 0:01:20.5]} 34... Rg8 {[%clk 0:01:09]} 35.
Bd3 {[%clk 0:01:19.8]} 35... Rg7 {[%clk 0:00:59.1]} 36. Qe8+ {[%clk 0:01:19.9]}
36... Rg8 {[%clk 0:00:59.5]} 37. Qf7 {[%clk 0:01:20.1]} 37... Bg7 {[%clk
0:00:36.9]} 38. Qh5 {[%clk 0:01:18.6]} 38... Qh6 {[%clk 0:00:33.3]} 39. Qxc5
{[%clk 0:01:14.7]} 39... Bf6 {[%clk 0:00:28.3]} 40. Qxa7 {[%clk 0:01:09.3]}
40... Qh4 {[%clk 0:00:24.4]} 41. Qxh7+ {[%clk 0:00:48.4]} 41... Qxh7 {[%clk
0:00:25.3]} 42. Bxh7 {[%clk 0:00:47.7]} 42... Kxh7 {[%clk 0:00:26.2]} 43. Rf3
{[%clk 0:00:39]} 43... Rc8 {[%clk 0:00:24.2]} 44. Kg3 {[%clk 0:00:29.1]} 44...
Kg6 {[%clk 0:00:23.8]} 45. a4 {[%clk 0:00:24.9]} 45... Kf5 {[%clk 0:00:18]} 46.
a5 {[%clk 0:00:21]} 46... Rg8+ {[%clk 0:00:16.5]} 47. Kf2 {[%clk 0:00:20.1]}
47... Bh4+ {[%clk 0:00:17.4]} 48. Ke2 {[%clk 0:00:19.5]} 48... Rc8 {[%clk
0:00:16.7]} 49. Rd3 {[%clk 0:00:17.4]} 49... Ke4 {[%clk 0:00:13.7]} 50. Rd1
{[%clk 0:00:14.3]} 50... Rc2+ {[%clk 0:00:12.3]} 51. Kf1 {[%clk 0:00:14.1]}
51... d3 {[%clk 0:00:11.7]} 52. a6 {[%clk 0:00:12.7]} 52... Ra2 {[%clk
0:00:11.3]} 53. Rb1 {[%clk 0:00:09.7]} 53... Rxa6 {[%clk 0:00:10.7]} 54. b4
{[%clk 0:00:10.3]} 54... Rf6 {[%clk 0:00:09.9]} 55. b5 {[%clk 0:00:09.5]} 55...
Rxf4+ {[%clk 0:00:10.8]} 56. Kg2 {[%clk 0:00:08.3]} 56... Rf2+ {[%clk
0:00:10.2]} 57. Kg1 {[%clk 0:00:08.6]} 57... Rf7 {[%clk 0:00:06.2]} 58. b6
{[%clk 0:00:08.9]} 58... Bg3 {[%clk 0:00:06.4]} 59. Kg2 {[%clk 0:00:08.9]} 59...
Bb8 {[%clk 0:00:06.5]} 60. h4 {[%clk 0:00:08.6]} 60... Ke3 {[%clk 0:00:07]} 61.
h5 {[%clk 0:00:08.4]} 61... d2 {[%clk 0:00:07.4]} 62. h6 {[%clk 0:00:08.7]}
62... Rh7 {[%clk 0:00:07.7]} 63. b7 {[%clk 0:00:05.4]} 63... Rxh6 {[%clk
0:00:07.4]} 64. Kf1 {[%clk 0:00:05.1]} 64... Rf6+ {[%clk 0:00:06.8]} 65. Kg2
{[%clk 0:00:05.1]} 65... Ke2 {[%clk 0:00:07.7]} 66. Rb2 {[%clk 0:00:03]} 66...
Ke1 {[%clk 0:00:08]} 67. Rb1+ {[%clk 0:00:02.9]} 67... d1=Q {[%clk 0:00:08.2]}
68. Rxd1+ {[%clk 0:00:03.5]} 68... Kxd1 {[%clk 0:00:08.8]} 69. Kh3 {[%clk
0:00:02.9]} 69... Rf7 {[%clk 0:00:09.7]} 70. Kg4 {[%clk 0:00:03.4]} 70... Rxb7
{[%clk 0:00:10.6]} 71. Kh5 {[%clk 0:00:03.8]} 71... Ba7 {[%clk 0:00:11.5]} 72.
Kg6 {[%clk 0:00:04.4]} 72... Re7 {[%clk 0:00:12.4]} 73. Kf5 {[%clk 0:00:04.7]}
73... Bc5 {[%clk 0:00:13.3]} 74. Kf6 {[%clk 0:00:05.1]} 74... Kd2 {[%clk
0:00:14.2]} 75. Kg6 {[%clk 0:00:03.8]} 75... Kd3 {[%clk 0:00:15.1]} 76. Kf5
{[%clk 0:00:04.4]} 76... Kd4 {[%clk 0:00:16]} 77. Kg4 {[%clk 0:00:04.8]} 77...
Rf7 {[%clk 0:00:15.9]} 78. Kg3 {[%clk 0:00:05.1]} 78... Ke5 {[%clk 0:00:16.8]}
79. Kg2 {[%clk 0:00:05.6]} 79... Ke4 {[%clk 0:00:17.1]} 80. Kg3 {[%clk
0:00:06.5]} 80... Rg7+ {[%clk 0:00:16.8]} 81. Kh4 {[%clk 0:00:06.7]} 81... Kf4
{[%clk 0:00:16.7]} 82. Kh5 {[%clk 0:00:06.7]} 82... Bb4 {[%clk 0:00:16.4]} 83.
Kh6 {[%clk 0:00:06.9]} 83... Rg2 {[%clk 0:00:16]} 84. Kh7 {[%clk 0:00:06.9]}
84... Kf5 {[%clk 0:00:16]} 85. Kh6 {[%clk 0:00:06.2]} 85... Rg1 {[%clk
0:00:15.7]} 86. Kh7 {[%clk 0:00:06.3]} 86... Kf6 {[%clk 0:00:16.2]} 87. Kh8
{[%clk 0:00:05.9]} 87... Kf7 {[%clk 0:00:16.6]} 88. Kh7 {[%clk 0:00:05.9]} 88...
Rh1# {[%clk 0:00:17.5]} 0-1

[Event "Late-Titled-Tuesday-Blitz-October-24-2023"]
[Site "Chess.com"]
[Date "2023.10.24"]
[Round "4"]
[White "Cipy77"]
[Black "Karacsonyi_Gellert"]
[Result "0-1"]
[WhiteElo "2574"]
[BlackElo "2753"]
[TimeControl "180+1"]
[EndTime "14:41:48 PDT"]
[Termination "Karacsonyi_Gellert won by resignation"]

1. e4 {[%clk 0:03:00.9]} 1... c5 {[%clk 0:02:58.5]} 2. Nf3 {[%clk 0:03:01.1]}
2... Nc6 {[%clk 0:02:57.9]} 3. Nc3 {[%clk 0:03:01.3]} 3... g6 {[%clk 0:02:58.1]}
4. d4 {[%clk 0:03:01.1]} 4... cxd4 {[%clk 0:02:59]} 5. Nxd4 {[%clk 0:03:01.4]}
5... Bg7 {[%clk 0:02:59.7]} 6. Be3 {[%clk 0:03:01.7]} 6... Nf6 {[%clk
0:03:00.4]} 7. Bc4 {[%clk 0:03:01.7]} 7... O-O {[%clk 0:03:00.6]} 8. Bb3 {[%clk
0:03:01.3]} 8... Re8 {[%clk 0:03:01.2]} 9. O-O {[%clk 0:02:57.9]} 9... d6 {[%clk
0:03:01.3]} 10. h3 {[%clk 0:02:57.1]} 10... Na5 {[%clk 0:03:02]} 11. f4 {[%clk
0:02:48]} 11... b6 {[%clk 0:03:02.1]} 12. e5 {[%clk 0:02:47.1]} 12... Nxb3
{[%clk 0:03:02.8]} 13. axb3 {[%clk 0:02:43.7]} 13... dxe5 {[%clk 0:02:29.6]} 14.
fxe5 {[%clk 0:02:42.7]} 14... Nd5 {[%clk 0:02:24.6]} 15. Qf3 {[%clk 0:02:37.8]}
15... Nxe3 {[%clk 0:02:19.3]} 16. Qxe3 {[%clk 0:02:31.9]} 16... Bb7 {[%clk
0:02:15.6]} 17. Rad1 {[%clk 0:02:30.2]} 17... Qc8 {[%clk 0:02:14.3]} 18. e6
{[%clk 0:02:19.6]} 18... f5 {[%clk 0:02:11.9]} 19. Nf3 {[%clk 0:02:03.7]} 19...
Bc6 {[%clk 0:01:35.4]} 20. b4 {[%clk 0:01:56.7]} 20... Rd8 {[%clk 0:01:24.5]}
21. b5 {[%clk 0:01:54.4]} 21... Bxf3 {[%clk 0:01:23.2]} 22. Rxd8+ {[%clk
0:01:49.8]} 22... Qxd8 {[%clk 0:01:23.7]} 23. Qxf3 {[%clk 0:01:49.9]} 23... Qd4+
{[%clk 0:01:15.2]} 24. Kh1 {[%clk 0:01:48.8]} 24... Rc8 {[%clk 0:01:12]} 25. Rd1
{[%clk 0:01:47.4]} 25... Qe5 {[%clk 0:01:12.4]} 26. Qb7 {[%clk 0:01:15.9]} 26...
Qxe6 {[%clk 0:01:09.7]} 27. Nd5 {[%clk 0:01:10.6]} 27... Re8 {[%clk 0:00:32.1]}
28. Nc7 {[%clk 0:01:09.6]} 28... Qe2 {[%clk 0:00:32.7]} 29. Qd5+ {[%clk
0:00:50.6]} 29... e6 {[%clk 0:00:32.9]} 30. Qd7 {[%clk 0:00:50.3]} 30... Re7
{[%clk 0:00:26.6]} 31. Qd8+ {[%clk 0:00:36.3]} 31... Kf7 {[%clk 0:00:21.7]} 32.
Na6 {[%clk 0:00:24.2]} 32... Be5 {[%clk 0:00:19.6]} 33. Nb4 {[%clk 0:00:22.6]}
33... Bc7 {[%clk 0:00:14.7]} 34. Qd4 {[%clk 0:00:17.2]} 34... e5 {[%clk
0:00:02.7]} 35. Qd5+ {[%clk 0:00:16.9]} 35... Kg7 {[%clk 0:00:03.5]} 36. Nc6
{[%clk 0:00:16.9]} 36... Rf7 {[%clk 0:00:04.3]} 37. c4 {[%clk 0:00:12.2]} 37...
Qe4 {[%clk 0:00:04.7]} 38. Qxe4 {[%clk 0:00:12.2]} 38... fxe4 {[%clk 0:00:05.6]}
39. Re1 {[%clk 0:00:11.9]} 39... Rf2 {[%clk 0:00:04]} 40. b4 {[%clk 0:00:09.5]}
40... e3 {[%clk 0:00:03.8]} 41. Nxa7 {[%clk 0:00:09.2]} 41... e4 {[%clk
0:00:03.8]} 42. Kg1 {[%clk 0:00:09.5]} 42... Rc2 {[%clk 0:00:03.4]} 43. Rxe3
{[%clk 0:00:08.6]} 43... Rxc4 {[%clk 0:00:04.1]} 44. Nc6 {[%clk 0:00:07.6]}
44... Bf4 {[%clk 0:00:04]} 45. Re2 {[%clk 0:00:07.4]} 45... e3 {[%clk
0:00:04.2]} 46. g3 {[%clk 0:00:06.8]} 46... Rc1+ {[%clk 0:00:04.4]} 47. Kg2
{[%clk 0:00:07]} 47... Bg5 {[%clk 0:00:05]} 48. h4 {[%clk 0:00:06.8]} 48... Bh6
{[%clk 0:00:05.7]} 49. Nd4 {[%clk 0:00:06.6]} 49... Rb1 {[%clk 0:00:05.6]} 50.
Nc2 {[%clk 0:00:05.1]} 50... Rb3 {[%clk 0:00:05.7]} 51. Kf3 {[%clk 0:00:03.5]}
51... Kf6 {[%clk 0:00:05]} 52. Nxe3 {[%clk 0:00:04.4]} 52... Bxe3 {[%clk
0:00:05.4]} 53. Rxe3 {[%clk 0:00:05.3]} 53... Rxb4 {[%clk 0:00:06.1]} 54. Rc3
{[%clk 0:00:04.6]} 54... Rxb5 {[%clk 0:00:06.4]} 55. Rc7 {[%clk 0:00:05.3]}
55... h5 {[%clk 0:00:06.2]} 56. Kf4 {[%clk 0:00:05.7]} 56... Rb4+ {[%clk
0:00:06.4]} 57. Kf3 {[%clk 0:00:06.4]} 57... Kf5 {[%clk 0:00:06.4]} 58. Rc6
{[%clk 0:00:07.1]} 58... Rb3+ {[%clk 0:00:06.8]} 59. Kf2 {[%clk 0:00:06.5]}
59... b5 {[%clk 0:00:07]} 60. Rc5+ {[%clk 0:00:06]} 60... Kf6 {[%clk 0:00:07]}
61. Rc6+ {[%clk 0:00:06.2]} 61... Kg7 {[%clk 0:00:07.7]} 62. Rb6 {[%clk
0:00:06.5]} 62... Rb1 {[%clk 0:00:06.8]} 63. Rb7+ {[%clk 0:00:05.8]} 63... Kf6
{[%clk 0:00:06.6]} 64. Rb6+ {[%clk 0:00:05.1]} 64... Kf5 {[%clk 0:00:07.2]} 65.
Rb8 {[%clk 0:00:04.6]} 65... Kg4 {[%clk 0:00:06.7]} 66. Rb6 {[%clk 0:00:03.2]}
66... Rb2+ {[%clk 0:00:07.2]} 67. Ke3 {[%clk 0:00:02.8]} 67... Kxg3 {[%clk
0:00:07.8]} 68. Rxg6+ {[%clk 0:00:03.3]} 68... Kxh4 {[%clk 0:00:08.6]} 69. Kf4
{[%clk 0:00:02.9]} 69... Rb4+ {[%clk 0:00:09]} 70. Kf3 {[%clk 0:00:02.7]} 70...
Rb3+ {[%clk 0:00:07.2]} 71. Kf4 {[%clk 0:00:02.3]} 71... Rb1 {[%clk 0:00:07.9]}
72. Kf3 {[%clk 0:00:02.9]} 72... Rf1+ {[%clk 0:00:07.8]} 73. Ke2 {[%clk
0:00:02.4]} 73... Rf5 {[%clk 0:00:08.3]} 74. Rg2 {[%clk 0:00:02.6]} 74... Rg5
{[%clk 0:00:07.7]} 75. Rh2+ {[%clk 0:00:02.4]} 75... Kg3 {[%clk 0:00:08.2]} 76.
Rh1 {[%clk 0:00:03.3]} 76... Kg2 {[%clk 0:00:05.8]} 77. Rh4 {[%clk 0:00:03.6]}
77... Re5+ {[%clk 0:00:06.6]} 78. Kd3 {[%clk 0:00:03.4]} 78... Kg3 {[%clk
0:00:07.4]} 79. Rh1 {[%clk 0:00:03.3]} 79... h4 {[%clk 0:00:08.1]} 80. Kd4
{[%clk 0:00:03.8]} 80... Rh5 {[%clk 0:00:07.1]} 81. Rb1 {[%clk 0:00:04.7]} 81...
h3 {[%clk 0:00:07]} 82. Ke3 {[%clk 0:00:05.1]} 82... h2 {[%clk 0:00:06.8]} 83.
Rh1 {[%clk 0:00:04.8]} 83... Kg2 {[%clk 0:00:06.9]} 0-1